bitfinex/quotes_BTCUSD_20251011
["timestamp","ask_amount","ask_price","bid_price","bid_amount"]
[1760214640597,0.00156137,110760.0,110750.0,1.22858418]
[1760214640800,0.00156137,110760.0,110750.0,0.32795781]
[1760214641021,0.00156137,110760.0,110750.0,0.09909]
[1760214641246,0.00156137,110760.0,110750.0,0.2796769]
[1760214641671,0.00156137,110760.0,110750.0,1.18030327]
[1760214643202,0.00156137,110760.0,110750.0,0.2796769]
[1760214643425,0.18213197,110760.0,110750.0,0.09909]
[1760214643675,0.00156137,110760.0,110750.0,0.36839624]
[1760214643907,0.00156137,110760.0,110750.0,1.26902261]
[1760214644126,0.00858524,110770.0,110760.0,1.08119697]
[1760214644342,0.34514834,110800.0,110790.0,0.1805217]
[1760214644343,0.14653279,110800.0,110790.0,0.1805217]
[1760214644556,0.07162362,110800.0,110790.0,0.2798117]
[1760214644771,0.07162362,110800.0,110790.0,0.18800934]
[1760214644982,0.18050541,110800.0,110790.0,0.05288]
[1760214645197,0.19067953,110810.0,110790.0,0.2798117]
[1760214645412,0.0303436,110810.0,110800.0,0.06905]
[1760214645635,0.0303436,110810.0,110800.0,0.09929]
[1760214645636,0.18068082,110810.0,110800.0,0.09929]
[1760214645848,0.18050541,110800.0,110790.0,0.02264]
[1760214646088,0.22080731,110800.0,110790.0,0.02264]
[1760214646311,0.21065731,110800.0,110790.0,0.02264]
[1760214646523,0.21065731,110800.0,110780.0,0.02264]
[1760214646524,0.1805217,110790.0,110780.0,0.02264]
[1760214646737,0.21065731,110800.0,110790.0,0.09929]
[1760214646956,0.2106736,110790.0,110780.0,0.02264]
[1760214647170,0.2106736,110790.0,110770.0,0.06905]
[1760214647171,0.2107062,110770.0,110760.0,0.02264]
[1760214647398,0.2107062,110770.0,110760.0,0.09929]
[1760214647628,0.1805706,110760.0,110750.0,0.02264]
[1760214647839,0.2107225,110760.0,110750.0,0.02264]
[1760214648462,0.2520125,110760.0,110750.0,0.00050535]
[1760214649099,0.2208725,110760.0,110750.0,0.02314535]
[1760214649727,0.2208725,110760.0,110750.0,0.02411606]
[1760214649940,0.2208725,110760.0,110750.0,0.05435606]
[1760214650200,0.1805706,110760.0,110750.0,0.10076606]
[1760214650614,0.2208725,110760.0,110750.0,0.05535606]
[1760214650822,0.2520125,110760.0,110750.0,0.02511606]
[1760214650952,0.2208725,110760.0,110750.0,0.05435606]
[1760214652116,0.2107225,110760.0,110750.0,0.10076606]
[1760214652703,0.2107225,110760.0,110750.0,0.10967216]
[1760214653262,0.2107225,110760.0,110750.0,0.10076606]
[1760214653464,0.2208725,110760.0,110750.0,0.05435606]
[1760214654122,0.2107225,110760.0,110750.0,0.10076606]
[1760214654321,0.04362754,110770.0,110760.0,0.1805706]
[1760214654527,0.52114486,110770.0,110760.0,0.09929]
[1760214654746,0.5704296,110770.0,110760.0,0.18800934]
[1760214654973,0.3898753,110770.0,110760.0,0.2798606]
[1760214655162,0.03074246,110770.0,110760.0,0.2798606]
[1760214655383,0.21129676,110770.0,110760.0,0.2798606]
[1760214655584,0.03074246,110770.0,110760.0,0.2798606]
[1760214656001,0.00059056,110770.0,110760.0,0.2798606]
[1760214656208,0.00059056,110770.0,110760.0,0.36857994]
[1760214656835,0.18114486,110770.0,110760.0,0.18800934]
[1760214657032,0.18956952,110770.0,110760.0,0.09929]
[1760214657598,0.00901522,110770.0,110760.0,0.2798606]
[1760214657806,0.00059056,110770.0,110760.0,0.2808606]
[1760214658219,0.18114486,110770.0,110760.0,0.2808606]
[1760214658427,0.18956952,110770.0,110760.0,0.2818606]
[1760214658637,0.18956952,110770.0,110760.0,0.33051696]
[1760214659285,0.00059056,110770.0,110760.0,1.23114333]
[1760214659508,0.04303698,110790.0,110780.0,0.180538]
[1760214659509,0.00842508,110790.0,110780.0,0.180538]
[1760214659713,0.26480001,110800.0,110760.0,0.10353636]
[1760214659935,0.22947296,110780.0,110760.0,0.2516206]
[1760214660150,0.23789804,110780.0,110770.0,0.02264]
[1760214660367,0.21912804,110780.0,110770.0,0.05288]
[1760214660572,0.21912804,110780.0,110770.0,0.09929]
[1760214660785,0.23789804,110780.0,110770.0,0.05288]
[1760214661003,0.21912804,110780.0,110770.0,0.07858906]
[1760214661479,0.21912804,110780.0,110770.0,0.12499906]
[1760214661714,0.03857698,110780.0,110770.0,0.31219341]
[1760214661933,0.21911498,110780.0,110770.0,0.30555336]
[1760214662348,0.2106899,110780.0,110770.0,0.40555336]
[1760214662555,0.2106899,110780.0,110770.0,0.22499906]
[1760214662769,0.0301519,110780.0,110770.0,0.40555336]
[1760214663200,0.18052375,110790.0,110770.0,0.40555336]
[1760214663411,0.21067565,110790.0,110780.0,0.06711]
[1760214663618,0.21067565,110790.0,110780.0,0.14099534]
[1760214663824,0.21067565,110790.0,110780.0,0.09837]
[1760214664257,0.18052375,110790.0,110780.0,0.09837]
[1760214664470,0.21067565,110790.0,110780.0,0.09837]
[1760214664687,0.18955703,110810.0,110800.0,0.18050541]
[1760214664900,0.18955703,110810.0,110780.0,0.06711]
[1760214664901,0.18050541,110800.0,110780.0,0.06711]
[1760214665118,0.21065731,110800.0,110790.0,0.02166]
[1760214665301,0.21065731,110800.0,110780.0,0.02166]
[1760214665302,0.2106736,110790.0,110780.0,0.02166]
[1760214665548,0.2106736,110790.0,110780.0,0.06711]
[1760214665794,0.2106736,110790.0,110780.0,0.05292]
[1760214666214,0.2106736,110790.0,110780.0,0.09837]
[1760214666429,0.2106736,110790.0,110780.0,0.09937]
[1760214666643,0.2106736,110790.0,110780.0,0.14209707]
[1760214666888,0.2106736,110790.0,110780.0,0.05492]
[1760214667135,0.2398436,110790.0,110780.0,0.02366]
[1760214667334,0.00844129,110790.0,110780.0,0.235458]
[1760214667547,0.1805617,110790.0,110780.0,0.15423521]
[1760214667798,0.2233836,110790.0,110780.0,0.05492]
[1760214668221,0.2107136,110790.0,110780.0,0.05492]
[1760214668886,0.02987119,110790.0,110780.0,0.280908]
[1760214669941,0.18955703,110810.0,110790.0,0.18051124]
[1760214670151,0.18050541,110800.0,110790.0,0.29089058]
[1760214670355,0.18050541,110800.0,110790.0,0.27888124]
[1760214670566,0.18970873,110810.0,110790.0,0.27888124]
[1760214670779,0.22830046,110810.0,110800.0,0.02166]
[1760214671407,0.22830046,110810.0,110800.0,0.05292]
[1760214671622,0.25746871,110810.0,110800.0,0.02166]
[1760214671838,0.23065998,110810.0,110800.0,0.07530312]
[1760214672052,0.21065731,110800.0,110790.0,0.20217124]
[1760214672265,0.22942731,110800.0,110790.0,0.02166]
[1760214672471,0.25859731,110800.0,110780.0,0.20219451]
[1760214672682,0.25859731,110800.0,110780.0,0.24764451]
[1760214672869,0.25859731,110800.0,110780.0,0.30272837]
[1760214673139,0.25859731,110800.0,110790.0,0.02166]
[1760214673344,0.1805217,110790.0,110780.0,0.20219451]
[1760214673557,0.1805217,110790.0,110780.0,0.27890451]
[1760214673768,0.22942731,110800.0,110780.0,0.27890451]
[1760214673984,0.1805217,110790.0,110780.0,0.23345681]
[1760214674200,0.1805217,110790.0,110780.0,0.29256968]
[1760214674433,0.1931917,110790.0,110780.0,0.11203287]
[1760214674650,0.1931917,110790.0,110780.0,0.11303287]
[1760214674867,5.73236797,110790.0,110780.0,0.001]
[1760214675086,1.60947298,110790.0,110780.0,0.001]
[1760214675300,1.63346387,110790.0,110780.0,0.001]
[1760214675510,5.91745121,110790.0,110780.0,0.002]
[1760214675926,5.64660057,110770.0,110760.0,0.0009706]
[1760214676155,5.73372645,110770.0,110760.0,0.0009706]
[1760214676375,5.73372645,110770.0,110760.0,1e-08]
[1760214676376,5.86387849,110770.0,110760.0,1e-08]
[1760214676597,5.00688626,110770.0,110760.0,1e-08]
[1760214676807,5.90751263,110770.0,110760.0,1e-08]
[1760214677245,0.90062637,110750.0,110730.0,0.14995445]
[1760214677457,5.73549948,110740.0,110730.0,0.14995445]
[1760214677665,1.59592026,110740.0,110730.0,0.14995445]
[1760214677889,4.99593727,110740.0,110730.0,0.14995445]
[1760214678105,5.89656364,110740.0,110730.0,0.14995445]
[1760214678327,5.8799076,110740.0,110730.0,0.14995445]
[1760214678540,4.97932123,110740.0,110730.0,0.14995445]
[1760214678753,4.84664189,110740.0,110730.0,0.14995445]
[1760214678965,0.61490665,110740.0,110730.0,0.14995445]
[1760214679174,0.65886665,110740.0,110730.0,0.14995445]
[1760214679622,5.75476102,110740.0,110730.0,0.14995445]
[1760214680031,4.85413465,110740.0,110730.0,0.14995445]
[1760214680249,0.65886665,110740.0,110730.0,0.14995445]
[1760214680429,0.74758599,110740.0,110730.0,0.24995445]
[1760214680948,4.94285399,110740.0,110730.0,0.24995445]
[1760214681194,4.94073576,110740.0,110730.0,0.24995445]
[1760214681414,4.97088766,110740.0,110730.0,0.24995445]
[1760214681851,4.89889399,110740.0,110730.0,0.24995445]
[1760214682071,4.94285399,110740.0,110730.0,0.24995445]
[1760214682802,5.87151403,110740.0,110730.0,0.24995445]
[1760214683035,3.28080942,110730.0,110720.0,0.00485383]
[1760214683234,4.28706801,110730.0,110720.0,0.00485383]
[1760214683461,4.36019801,110730.0,110720.0,0.00721719]
[1760214683676,4.36019801,110730.0,110700.0,0.00252841]
[1760214683677,0.55080405,110710.0,110700.0,0.00252841]
[1760214683898,4.76179205,110710.0,110700.0,0.00252841]
[1760214684121,5.81192752,110710.0,110700.0,0.00252841]
[1760214684393,0.55082037,110700.0,110690.0,0.05743]
[1760214684605,0.55082037,110700.0,110690.0,0.12454]
[1760214684823,0.55969587,110700.0,110690.0,0.15412555]
[1760214685043,0.56020121,110700.0,110690.0,0.10867555]
[1760214685270,0.70898855,110700.0,110690.0,0.05575555]
[1760214685517,0.63585855,110700.0,110690.0,0.10613555]
[1760214685970,0.37953274,110700.0,110690.0,0.10613555]
[1760214686201,0.03953274,110700.0,110690.0,0.10613555]
[1760214686426,0.00050534,110700.0,110690.0,0.30362991]
[1760214686663,0.00050534,110700.0,110690.0,0.28682034]
[1760214687331,1.57129736,110700.0,110680.0,0.02166]
[1760214687556,0.56033927,110700.0,110690.0,0.09837]
[1760214687766,0.58053571,110700.0,110690.0,0.012003]
[1760214687976,0.58053571,110700.0,110680.0,0.02166]
[1760214687977,0.18070112,110680.0,110670.0,0.02166]
[1760214688254,0.18070112,110680.0,110660.0,0.00076392]
[1760214688255,0.21086934,110670.0,110660.0,0.00076392]
[1760214688484,0.55086934,110670.0,110660.0,0.02242392]
[1760214688698,0.0301519,110670.0,110660.0,0.23441769]
[1760214688920,0.0301519,110680.0,110660.0,0.23441769]
[1760214689137,0.21085481,110680.0,110670.0,0.06711]
[1760214689352,0.28298056,110700.0,110670.0,0.29715918]
[1760214689563,0.27096056,110700.0,110690.0,0.02166]
[1760214689823,0.62298056,110700.0,110690.0,0.05292]
[1760214690038,0.21083669,110690.0,110670.0,0.02166]
[1760214690298,0.21086934,110670.0,110660.0,0.00076392]
[1760214690547,1.48066571,110670.0,110660.0,0.00076392]
[1760214690757,0.55086934,110670.0,110660.0,0.05368392]
[1760214690975,0.55086934,110670.0,110660.0,0.02242392]
[1760214691194,0.58003934,110670.0,110660.0,0.00076392]
[1760214692555,1.48066571,110670.0,110660.0,0.00076392]
[1760214692769,0.55086934,110670.0,110660.0,0.02398392]
[1760214692991,0.55090934,110670.0,110660.0,0.10198392]
[1760214693210,0.55090934,110670.0,110660.0,0.05560392]
[1760214693648,0.55090934,110670.0,110660.0,0.15560392]
[1760214693864,0.58144934,110670.0,110660.0,0.10076392]
[1760214694083,1.51394571,110670.0,110660.0,0.10076392]
[1760214694302,1.51394571,110670.0,110660.0,0.12398392]
[1760214694303,0.55090934,110670.0,110660.0,0.12398392]
[1760214694520,1.51394571,110670.0,110660.0,0.10076392]
[1760214694947,5.67734371,110670.0,110660.0,0.10431153]
[1760214695790,5.67734371,110670.0,110660.0,0.13593153]
[1760214695791,0.55090934,110670.0,110660.0,0.13593153]
[1760214696037,0.52075744,110670.0,110660.0,0.15915153]
[1760214696241,0.18075744,110670.0,110660.0,0.20553153]
[1760214696416,1.11192381,110670.0,110660.0,0.12753153]
[1760214696650,1.11153571,110670.0,110660.0,0.12753153]
[1760214696863,1.11153571,110670.0,110660.0,0.15915153]
[1760214696864,0.21090934,110670.0,110660.0,0.15915153]
[1760214697074,0.24144934,110670.0,110660.0,0.10431153]
[1760214697283,4.43671734,110670.0,110660.0,0.10431153]
[1760214697513,5.11290065,110670.0,110660.0,0.10431153]
[1760214697724,4.43671734,110670.0,110660.0,0.10431153]
[1760214697940,5.08103065,110670.0,110660.0,0.10431153]
[1760214698148,5.11290065,110670.0,110660.0,0.10431153]
[1760214698375,5.08103065,110670.0,110660.0,0.10431153]
[1760214698811,4.46858734,110670.0,110660.0,0.10431153]
[1760214699055,5.08103065,110670.0,110660.0,0.10431153]
[1760214699290,0.21090934,110670.0,110660.0,0.15915153]
[1760214699512,0.88576265,110670.0,110660.0,0.10431153]
[1760214699780,5.11290065,110670.0,110660.0,0.10431153]
[1760214700209,4.46858734,110670.0,110660.0,0.10431153]
[1760214700429,5.11290065,110670.0,110660.0,0.10431153]
[1760214700702,4.46858734,110670.0,110660.0,0.10431153]
[1760214700905,4.88198466,110670.0,110660.0,0.10431153]
[1760214701119,5.09073577,110670.0,110660.0,0.10431153]
[1760214701342,4.46545863,110670.0,110660.0,0.10431153]
[1760214701550,5.44977194,110670.0,110660.0,0.10431153]
[1760214701761,5.42173827,110670.0,110660.0,0.10431153]
[1760214701973,4.80545863,110670.0,110660.0,0.10431153]
[1760214702182,5.47901008,110670.0,110660.0,0.10431153]
[1760214702807,4.77358863,110670.0,110660.0,0.10431153]
[1760214703019,5.42002017,110670.0,110660.0,0.10431153]
[1760214703456,5.46026384,110670.0,110660.0,0.10431153]
[1760214703943,4.80374053,110670.0,110660.0,0.10431153]
[1760214704166,0.19975361,110670.0,110660.0,0.20333153]
[1760214704381,0.18070112,110680.0,110660.0,0.3840653]
[1760214704593,0.18071744,110670.0,110660.0,0.15471392]
[1760214704802,0.18071744,110670.0,110660.0,0.69351016]
[1760214705025,20.8530685,110690.0,110670.0,0.52071577]
[1760214705242,20.18068651,110690.0,110680.0,0.09902]
[1760214705458,20.18068651,110690.0,110680.0,0.29779123]
[1760214705459,20.0,110690.0,110680.0,0.29779123]
[1760214705681,20.0,110690.0,110680.0,0.61972112]
[1760214706807,20.21083669,110690.0,110680.0,0.43902]
[1760214707109,20.23037669,110690.0,110670.0,0.02353]
[1760214707311,0.21085302,110680.0,110670.0,0.0686]
[1760214707526,0.21085302,110680.0,110670.0,0.09902]
[1760214707735,0.22306302,110680.0,110670.0,0.05395]
[1760214708405,0.21085302,110680.0,110670.0,0.09902]
[1760214709466,0.21085302,110680.0,110670.0,0.05395]
[1760214709687,0.21085302,110680.0,110670.0,0.09902]
[1760214709902,0.21085302,110680.0,110670.0,0.10197607]
[1760214710122,20.04716945,110690.0,110670.0,0.74628938]
[1760214710335,19.95128,110690.0,110680.0,0.18070112]
[1760214710777,19.95128,110690.0,110680.0,0.27972112]
[1760214711034,19.95128,110690.0,110680.0,0.92403443]
[1760214711295,19.95128,110690.0,110680.0,0.27972112]
[1760214711527,19.95128,110690.0,110680.0,0.09902]
[1760214711774,19.95128,110690.0,110680.0,0.27972112]
[1760214712782,19.95128,110690.0,110680.0,0.92403443]
[1760214713048,19.95128,110690.0,110680.0,0.27972112]
[1760214715263,20.13196479,110690.0,110680.0,0.27972112]
[1760214715435,20.53349419,110690.0,110680.0,0.05395]
[1760214715653,20.53349419,110690.0,110680.0,0.28208576]
[1760214715654,20.3405994,110690.0,110680.0,0.28208576]
[1760214716083,20.29128,110690.0,110680.0,0.28208576]
[1760214716726,19.95128,110690.0,110680.0,0.28208576]
[1760214716945,19.95128,110690.0,110680.0,0.92639907]
[1760214717849,19.48655149,110690.0,110680.0,1.39139905]
[1760214718059,19.26478294,110690.0,110680.0,1.48192857]
[1760214718270,19.03992418,110690.0,110680.0,2.12524188]
[1760214718492,19.03992418,110690.0,110680.0,1.48092857]
[1760214718710,19.03992418,110690.0,110680.0,1.48192857]
[1760214718940,19.03992418,110690.0,110680.0,1.39139905]
[1760214719312,19.03992418,110690.0,110680.0,1.39239905]
[1760214719514,18.63019919,110690.0,110680.0,1.48192857]
[1760214720029,18.63019919,110690.0,110680.0,1.39239905]
[1760214721187,18.63019919,110690.0,110680.0,0.74808574]
[1760214721413,18.63019919,110690.0,110680.0,1.39239905]
[1760214721630,18.14880715,110690.0,110680.0,1.48192857]
[1760214721849,17.58111058,110690.0,110680.0,2.15639378]
[1760214722064,17.33548309,110690.0,110680.0,2.25639377]
[1760214722283,17.30835407,110690.0,110680.0,2.25639377]
[1760214722501,17.03702321,110690.0,110680.0,2.25639377]
[1760214722718,16.83677008,110690.0,110680.0,2.25639377]
[1760214722948,16.63320384,110690.0,110680.0,2.25639377]
[1760214723168,16.41946106,110690.0,110680.0,2.15639378]
[1760214723387,16.39233204,110690.0,110680.0,1.51208047]
[1760214723820,16.39233204,110690.0,110680.0,0.83761526]
[1760214724036,16.39233204,110690.0,110680.0,1.48092857]
[1760214724269,16.39233204,110690.0,110680.0,0.38308575]
[1760214724508,16.39233204,110690.0,110680.0,0.24101576]
[1760214724711,16.39233204,110690.0,110680.0,0.23701576]
[1760214724930,16.39233204,110690.0,110680.0,0.24001576]
[1760214725361,16.39233204,110690.0,110680.0,0.23701576]
[1760214725614,16.39233204,110690.0,110680.0,0.23801576]
[1760214725826,16.39233204,110690.0,110680.0,0.23901576]
[1760214726275,16.39233204,110690.0,110680.0,0.02789464]
[1760214726722,16.59762683,110690.0,110680.0,0.02789464]
[1760214726954,17.05042873,110690.0,110680.0,0.00436464]
[1760214727174,17.72277571,110690.0,110680.0,0.00336464]
[1760214727390,21.9467796,110690.0,110680.0,0.00236464]
[1760214727601,21.96589194,110690.0,110680.0,0.00236464]
[1760214727818,17.13471448,110690.0,110680.0,0.00236464]
[1760214728031,21.97429579,110690.0,110680.0,0.00236464]
[1760214728244,17.02078107,110690.0,110680.0,0.00236464]
[1760214728456,17.00166873,110690.0,110680.0,0.00236464]
[1760214728666,17.05042873,110690.0,110680.0,0.00236464]
[1760214728880,17.05142873,110690.0,110680.0,0.00236464]
[1760214729098,16.39333204,110690.0,110680.0,0.64667795]
[1760214729305,16.39233204,110690.0,110680.0,1.16737907]
[1760214729538,16.39233204,110690.0,110680.0,1.29237905]
[1760214729956,16.39233204,110690.0,110680.0,1.26737906]
[1760214730613,16.39333204,110690.0,110680.0,1.26737906]
[1760214730849,16.39233204,110690.0,110680.0,1.26737906]
[1760214731060,16.39233204,110690.0,110680.0,1.16837907]
[1760214731272,16.39233204,110690.0,110680.0,0.18406576]
[1760214731479,16.39233204,110690.0,110680.0,0.18606576]
[1760214732123,16.39233204,110690.0,110680.0,0.18406576]
[1760214732337,16.39233204,110690.0,110680.0,0.82837907]
[1760214732966,16.39237204,110690.0,110680.0,0.82837907]
[1760214733630,16.39237204,110690.0,110680.0,0.82737907]
[1760214733849,16.39237204,110690.0,110680.0,0.82937907]
[1760214734323,16.39237204,110690.0,110680.0,0.82837907]
[1760214734541,16.39237204,110690.0,110680.0,0.82737907]
[1760214734770,16.39237204,110690.0,110680.0,0.82837907]
[1760214734984,16.39237204,110690.0,110680.0,0.82937907]
[1760214735422,16.39237204,110690.0,110680.0,0.82837907]
[1760214736341,16.39237204,110690.0,110680.0,0.18406576]
[1760214736573,16.39237204,110690.0,110680.0,0.82837907]
[1760214736788,16.39237204,110690.0,110680.0,0.18406576]
[1760214737011,16.39237204,110690.0,110680.0,0.82837907]
[1760214737251,16.39237204,110690.0,110680.0,0.00436464]
[1760214737471,16.39237204,110690.0,110680.0,0.18506576]
[1760214738391,16.39237204,110690.0,110680.0,0.18306576]
[1760214738617,16.41698204,110690.0,110680.0,0.18406576]
[1760214738869,16.41698204,110690.0,110680.0,0.18506576]
[1760214738870,16.39237204,110690.0,110680.0,0.18506576]
[1760214739077,16.63155683,110690.0,110680.0,0.00436464]
[1760214739291,16.41698204,110690.0,110680.0,0.18406576]
[1760214739729,17.05046873,110690.0,110680.0,0.00336464]
[1760214740151,17.05046873,110690.0,110680.0,0.00236464]
[1760214740378,17.71397183,110690.0,110680.0,0.00336464]
[1760214740589,17.7420055,110690.0,110680.0,0.00436464]
[1760214741047,17.7420055,110690.0,110680.0,0.00336464]
[1760214741048,17.75043913,110690.0,110680.0,0.00336464]
[1760214741269,21.94570713,110690.0,110680.0,0.00236464]
[1760214741476,21.96945904,110690.0,110680.0,0.00236464]
[1760214741690,21.98610821,110690.0,110680.0,0.00236464]
[1760214741898,22.0148441,110690.0,110680.0,0.00236464]
[1760214742617,17.8195761,110690.0,110680.0,0.00236464]
[1760214742830,22.0148441,110690.0,110680.0,0.00236464]
[1760214743469,22.0158441,110690.0,110680.0,0.00236464]
[1760214743898,21.98810821,110690.0,110680.0,0.00236464]
[1760214744105,21.98299152,110690.0,110680.0,0.00236464]
[1760214744319,21.98199152,110690.0,110680.0,0.00236464]
[1760214744527,22.0677091,110690.0,110680.0,0.00236464]
[1760214744708,22.09263853,110690.0,110680.0,1e-08]
[1760214744922,0.55086934,110670.0,110660.0,0.00076392]
[1760214745157,5.46641,110670.0,110660.0,0.00076392]
[1760214745376,5.57367,110670.0,110660.0,0.00076392]
[1760214745597,1.378402,110670.0,110660.0,0.00076392]
[1760214745812,5.56745794,110670.0,110660.0,0.00076392]
[1760214746028,5.54493411,110670.0,110660.0,0.00076392]
[1760214746265,5.51690044,110670.0,110660.0,0.00076392]
[1760214746485,1.32163244,110670.0,110660.0,0.00076392]
[1760214746701,0.65812934,110670.0,110660.0,0.00076392]
[1760214746911,1.30244265,110670.0,110660.0,0.00076392]
[1760214747770,0.65812934,110670.0,110660.0,0.00076392]
[1760214747979,0.37377107,110670.0,110660.0,0.00076392]
[1760214748204,0.94145182,110670.0,110660.0,0.00076392]
[1760214748443,0.0301519,110660.0,110650.0,0.0045954]
[1760214748666,1.22337398,110660.0,110650.0,0.0045954]
[1760214748875,1.24249205,110660.0,110650.0,0.0045954]
[1760214749084,1.22337398,110660.0,110650.0,0.0045954]
[1760214749509,0.96245898,110660.0,110650.0,0.0045954]
[1760214749749,0.96296401,110660.0,110650.0,0.0045954]
[1760214750831,1.37458763,110660.0,110640.0,0.06143807]
[1760214751073,4.74618634,110640.0,110630.0,0.00298952]
[1760214751302,0.55091834,110640.0,110630.0,0.02613952]
[1760214751516,0.3947619,110640.0,110630.0,0.02613952]
[1760214751727,0.55091834,110640.0,110630.0,0.05872952]
[1760214752149,0.3701519,110640.0,110630.0,0.05872952]
[1760214752364,0.55091834,110640.0,110630.0,0.11118952]
[1760214752575,0.55091834,110640.0,110630.0,0.02613952]
[1760214752576,0.57801834,110640.0,110630.0,0.02613952]
[1760214752787,0.55091834,110640.0,110630.0,0.06258952]
[1760214753215,0.55091834,110640.0,110630.0,0.11504952]
[1760214753439,1.25856165,110640.0,110630.0,0.00298952]
[1760214753884,0.57801834,110640.0,110630.0,0.02719952]
[1760214754096,0.55091834,110640.0,110630.0,0.02719952]
[1760214754320,0.57801834,110640.0,110630.0,0.02719952]
[1760214754541,0.55091834,110640.0,110630.0,0.06364952]
[1760214755845,0.3701519,110640.0,110630.0,0.11610952]
[1760214756057,0.34,110640.0,110630.0,0.30234313]
[1760214756278,0.34,110640.0,110630.0,0.2968923]
[1760214756503,0.18075067,110650.0,110630.0,0.1190672]
[1760214756711,1.16506398,110650.0,110630.0,0.11610952]
[1760214756927,0.55090257,110650.0,110640.0,0.07355]
[1760214757154,0.55090257,110650.0,110640.0,0.11]
[1760214757375,0.55090257,110650.0,110640.0,0.05754]
[1760214758058,0.55090257,110650.0,110640.0,0.11]
[1760214758694,0.34,110650.0,110640.0,0.12807664]
[1760214758903,0.34,110650.0,110640.0,0.29076644]
[1760214760011,0.34,110650.0,110640.0,0.29176644]
[1760214760894,0.34,110650.0,110640.0,0.111]
[1760214761108,0.52075011,110650.0,110640.0,0.111]
[1760214761338,0.34,110650.0,110640.0,0.111]
[1760214761841,0.52075011,110650.0,110640.0,0.05854]
[1760214762057,0.55090201,110650.0,110640.0,0.06190593]
[1760214762272,0.55090201,110650.0,110640.0,0.06090593]
[1760214762710,1.56898008,110650.0,110640.0,0.00336593]
[1760214763137,1.56898008,110650.0,110640.0,0.00436593]
[1760214763584,1.59701375,110650.0,110640.0,0.00436593]
[1760214763798,1.59701375,110650.0,110640.0,0.00236593]
[1760214763799,1.54453375,110650.0,110640.0,0.00236593]
[1760214764018,0.69474568,110650.0,110640.0,0.00236593]
[1760214764225,1.58811941,110650.0,110640.0,0.00236593]
[1760214764672,0.18078278,110630.0,110590.0,1.00771374]
[1760214764884,0.18078278,110630.0,110610.0,0.18985272]
[1760214765098,0.18078278,110630.0,110620.0,0.00118339]
[1760214765577,0.21604476,110640.0,110620.0,0.00118339]
[1760214765578,0.18980476,110640.0,110620.0,0.00118339]
[1760214765804,0.52076655,110640.0,110620.0,0.19887579]
[1760214766017,0.52076682,110640.0,110620.0,0.18079588]
[1760214766219,0.24801144,110650.0,110630.0,0.01784743]
[1760214766646,0.21187644,110650.0,110630.0,0.19885759]
[1760214766873,0.21187644,110650.0,110630.0,0.01807827]
[1760214767088,0.00097193,110650.0,110640.0,0.18076644]
[1760214767956,0.06355193,110650.0,110610.0,0.18985344]
[1760214768171,0.19076174,110650.0,110630.0,0.52078038]
[1760214768385,0.00097193,110650.0,110630.0,0.52078038]
[1760214768597,0.00097193,110650.0,110640.0,1.42303451]
[1760214768805,16.39611417,110690.0,110680.0,0.52070112]
[1760214769028,16.38725535,110690.0,110680.0,1.42312058]
[1760214769291,16.35585535,110690.0,110680.0,1.44812057]
[1760214769527,16.35585535,110690.0,110680.0,1.63765008]
[1760214769739,16.35585535,110690.0,110680.0,0.73538201]
[1760214769950,16.35585535,110690.0,110680.0,1.63865008]
[1760214770369,16.35585535,110690.0,110680.0,0.73638201]
[1760214770604,16.35585535,110690.0,110680.0,1.54812056]
[1760214770814,16.35585535,110690.0,110680.0,1.54912056]
[1760214771020,16.35585535,110690.0,110680.0,0.64685249]
[1760214771224,16.35922014,110690.0,110680.0,0.64685249]
[1760214771431,16.35922014,110690.0,110680.0,1.54912056]
[1760214771645,16.35922014,110690.0,110680.0,1.55112056]
[1760214771855,16.35922014,110690.0,110680.0,1.45112057]
[1760214772063,16.35922014,110690.0,110680.0,0.64685249]
[1760214772280,16.35922014,110690.0,110680.0,1.55112056]
[1760214772490,16.35922014,110690.0,110680.0,0.64885249]
[1760214772692,16.35922014,110690.0,110680.0,1.55112056]
[1760214772902,16.35922014,110690.0,110680.0,1.42612058]
[1760214773089,16.35922014,110690.0,110680.0,1.52612057]
[1760214774185,16.35922014,110690.0,110680.0,1.55112056]
[1760214774608,15.95152131,110690.0,110680.0,1.64065008]
[1760214774814,15.60930816,110690.0,110680.0,1.64065008]
[1760214775021,15.60930816,110690.0,110680.0,1.67080198]
[1760214775237,15.04446083,110690.0,110680.0,1.67080198]
[1760214775463,14.7360347,110690.0,110680.0,1.77080197]
[1760214775691,14.30174098,110690.0,110680.0,1.77080197]
[1760214775920,14.23667227,110690.0,110680.0,1.77080197]
[1760214776136,14.04994631,110690.0,110680.0,1.77080197]
[1760214776354,13.82146298,110690.0,110680.0,1.76980197]
[1760214776588,13.32962223,110690.0,110680.0,1.76780197]
[1760214776876,13.25028113,110690.0,110680.0,1.77180197]
[1760214777091,12.93897662,110690.0,110680.0,1.77180197]
[1760214777270,12.91184547,110690.0,110680.0,1.77180197]
[1760214777532,12.61407014,110690.0,110680.0,1.77180197]
[1760214777745,12.47102873,110690.0,110680.0,1.77180197]
[1760214777967,12.18074071,110690.0,110680.0,1.77180197]
[1760214779277,12.18074071,110690.0,110680.0,1.54165009]
[1760214779484,12.18074071,110690.0,110680.0,1.64165008]
[1760214779913,12.18074071,110690.0,110680.0,0.76953391]
[1760214780135,12.18074071,110690.0,110680.0,1.08712058]
[1760214780374,12.18074071,110690.0,110680.0,1.18712057]
[1760214780636,12.18074071,110690.0,110680.0,0.18485251]
[1760214780846,12.18074071,110690.0,110680.0,1.08712058]
[1760214781079,12.18074071,110690.0,110680.0,0.00415139]
[1760214781282,12.18074071,110690.0,110680.0,0.00315139]
[1760214781490,12.18074071,110690.0,110680.0,0.18285251]
[1760214781705,12.18074071,110690.0,110680.0,1.08512058]
[1760214781919,12.18074071,110690.0,110680.0,1.08412058]
[1760214782347,12.18074071,110690.0,110680.0,1.08612058]
[1760214782555,12.18074071,110690.0,110680.0,1.42612058]
[1760214782969,12.18074071,110690.0,110680.0,1.55112056]
[1760214783203,12.18074071,110690.0,110680.0,0.6238525]
[1760214783410,12.18074071,110690.0,110680.0,1.42612058]
[1760214783617,12.18074071,110690.0,110680.0,1.52612057]
[1760214783829,12.18074071,110690.0,110680.0,0.52385251]
[1760214784034,12.18074071,110690.0,110680.0,1.42612058]
[1760214784259,12.18074071,110690.0,110680.0,0.52385251]
[1760214784972,12.18074071,110690.0,110680.0,1.42612058]
[1760214785195,12.18074071,110690.0,110680.0,0.52385251]
[1760214785414,12.21426071,110690.0,110680.0,0.00315139]
[1760214785625,12.4712774,110690.0,110680.0,0.00315139]
[1760214786041,13.44028547,110690.0,110680.0,0.00115139]
[1760214786251,13.44028547,110690.0,110680.0,0.00015139]
[1760214786252,12.8780174,110690.0,110680.0,0.00015139]
[1760214786466,13.80831914,110690.0,110680.0,0.00215139]
[1760214787102,13.80831914,110690.0,110680.0,0.00115139]
[1760214787519,13.74157914,110690.0,110680.0,0.00115139]